fUST/lending_fUST_20240427
["ID","MTS","AMOUNT","RATE_DAILY","PERIOD"]
[323672830,1714157434845,-500.0,0.00041095,7]
[323672831,1714157434854,-500.0,0.00041095,7]
[323672832,1714157434865,-500.0,0.00041095,7]
[323672833,1714157434874,-500.0,0.00041095,7]
[323672834,1714157434883,-500.0,0.00041095,7]
[323672835,1714157434895,-500.0,0.00041095,7]
[323672836,1714157434904,-500.0,0.00041095,7]
[323672837,1714157434913,-500.0,0.00041095,7]
[323672838,1714157434922,-500.0,0.00041095,7]
[323672839,1714157434932,-500.0,0.00041095,7]
[323672840,1714157434941,-500.0,0.00041095,7]
[323672841,1714157434950,-500.0,0.00041095,7]
[323672842,1714157434959,-555.50600916,0.00041095,7]
[323672843,1714157434969,-500.0,0.00041095,7]
[323672844,1714157434978,-160.38725861,0.00041095,7]
[323672845,1714157434987,-531.91,0.00041095,7]
[323672846,1714157434996,-500.0,0.00041095,7]
[323672847,1714157435008,-529.32238476,0.00041095,7]
[323672848,1714157435017,-500.0,0.00041095,7]
[323672849,1714157435027,-500.0,0.00041095,7]
[323672850,1714157435036,-500.0,0.00041095,7]
[323672851,1714157435046,-500.2984693,0.00041095,7]
[323672852,1714157435056,-500.0,0.00041095,7]
[323672853,1714157435066,-500.0,0.00041095,7]
[323672854,1714157435079,-500.0,0.00041095,7]
[323672855,1714157435091,-10000.0,0.00041095,30]
[323672856,1714157435100,-500.0,0.00041095,7]
[323672857,1714157435109,-500.0,0.00041095,7]
[323672858,1714157435119,-500.0,0.00041095,7]
[323672859,1714157435128,-500.0,0.00041095,7]
[323672860,1714157435137,-621.40583215,0.00041095,7]
[323672861,1714157435146,-500.0,0.00041095,7]
[323672862,1714157435156,-500.0,0.00041095,7]
[323672863,1714157435165,-500.0,0.00041095,7]
[323672864,1714157435174,-512.74678466,0.00041095,7]
[323672865,1714157435182,-501.9100566,0.00041095,7]
[323672866,1714157435191,-500.0,0.00041095,7]
[323672867,1714157435200,-887.83,0.00041095,7]
[323672868,1714157435320,-500.0,0.00041095,7]
[323672869,1714157435330,-500.0,0.00041095,7]
[323672870,1714157435339,-535.06,0.00041095,7]
[323672871,1714157435348,-749.04,0.00041095,7]
[323672872,1714157435358,-500.0,0.00041095,7]
[323672873,1714157435367,-500.0,0.00041095,7]
[323672874,1714157435377,-500.0,0.00041095,7]
[323672875,1714157435386,-500.0,0.00041095,7]
[323672876,1714157435395,-500.0,0.00041095,7]
[323672877,1714157435404,-500.0,0.00041095,7]
[323672878,1714157435414,-500.0,0.00041095,7]
[323672879,1714157435423,-500.0,0.00041095,7]
[323672880,1714157435433,-500.0,0.00041095,7]
[323672881,1714157435442,-500.0,0.00041095,7]
[323672882,1714157435451,-500.0,0.00041095,7]
[323672883,1714157435461,-500.0,0.00041095,7]
[323672884,1714157435470,-500.0,0.00041095,7]
[323672885,1714157435479,-500.0,0.00041095,7]
[323672886,1714157435488,-500.0,0.00041095,7]
[323672887,1714157435497,-500.0,0.00041095,7]
[323672888,1714157435506,-500.0,0.00041095,7]
[323672889,1714157435515,-4205.31,0.00041095,7]
[323672890,1714157435524,-1911.24,0.00041095,7]
[323672891,1714157435534,-500.0,0.00041095,7]
[323672892,1714157435543,-500.0,0.00041095,7]
[323672893,1714157435552,-500.0,0.00041095,7]
[323672894,1714157435562,-502.16644833,0.00041095,7]
[323672895,1714157435571,-345.0,0.00041095,7]
[323672896,1714157435580,-500.0,0.00041095,7]
[323672897,1714157435590,-500.0,0.00041095,7]
[323672898,1714157435600,-500.0,0.00041095,7]
[323672899,1714157435609,-500.0,0.00041095,7]
[323672900,1714157435618,-2899.93,0.00041095,7]
[323672901,1714157435628,-500.0,0.00041095,7]
[323672902,1714157435637,-500.0,0.00041095,7]
[323672903,1714157435647,-500.0,0.00041095,7]
[323672904,1714157435656,-500.0,0.00041095,7]
[323672905,1714157435666,-503.08954802,0.00041095,7]
[323672906,1714157435675,-500.0,0.00041095,7]
[323672907,1714157435684,-500.0,0.00041095,7]
[323672908,1714157435694,-500.0,0.00041095,7]
[323672909,1714157435703,-500.0,0.00041095,7]
[323672910,1714157435713,-1614.93,0.00041095,7]
[323672911,1714157435723,-500.0,0.00041095,7]
[323672912,1714157435732,-500.0,0.00041095,7]
[323672913,1714157435741,-500.0,0.00041095,7]
[323672914,1714157435750,-500.0,0.00041095,7]
[323672915,1714157435759,-500.0,0.00041095,7]
[323672916,1714157435770,-519.05780913,0.00041095,7]
[323672917,1714157435779,-500.0,0.00041095,7]
[323672918,1714157435788,-500.0,0.00041095,7]
[323672919,1714157435798,-500.0,0.00041095,7]
[323672920,1714157435807,-527.39,0.00041095,7]
[323672921,1714157435818,-500.0,0.00041095,7]
[323672922,1714157435829,-500.0,0.00041095,7]
[323672923,1714157435838,-500.0,0.00041095,7]
[323672924,1714157435848,-499.77860378,0.00041095,7]
[323672925,1714157435857,-500.0,0.00041095,7]
[323672926,1714157435866,-151.0,0.00041095,7]
[323672927,1714157435876,-500.0,0.00041095,7]
[323672928,1714157435885,-500.0,0.00041095,7]
[323672929,1714157435894,-500.0,0.00041095,7]
[323672930,1714157435904,-197.00699021,0.00041095,7]
[323672931,1714157435913,-500.0,0.00041095,7]
[323672932,1714157435923,-500.0,0.00041095,7]
[323672933,1714157435932,-500.0,0.00041095,7]
[323672934,1714157435942,-500.0,0.00041095,7]
[323672935,1714157435951,-2253.66,0.00041095,7]
[323672936,1714157435961,-500.0,0.00041095,7]
[323672937,1714157435970,-523.99850363,0.00041095,7]
[323672938,1714157435979,-500.0,0.00041095,7]
[323672939,1714157435988,-500.0,0.00041095,7]
[323672940,1714157435999,-500.0,0.00041095,7]
[323672941,1714157436008,-500.0,0.00041095,7]
[323672942,1714157436017,-500.0,0.00041095,7]
[323672943,1714157436027,-500.0,0.00041095,7]
[323672944,1714157436037,-500.56410204,0.00041095,7]
[323672945,1714157436047,-500.0,0.00041095,7]
[323672946,1714157436057,-505.98749903,0.00041095,7]
[323672947,1714157436066,-500.0,0.00041095,7]
[323672948,1714157436075,-500.0,0.00041095,7]
[323672949,1714157436085,-500.0,0.00041095,7]
[323672950,1714157436096,-3319.34,0.00041095,7]
[323672951,1714157436105,-500.0,0.00041095,7]
[323672952,1714157436115,-500.0,0.00041095,7]
[323672953,1714157436124,-500.0,0.00041095,7]
[323672954,1714157436133,-500.0,0.00041095,7]
[323672955,1714157436143,-500.0,0.00041095,2]
[323672956,1714157436153,-500.0,0.00041095,7]
[323672957,1714157436162,-500.0,0.00041095,7]
[323672958,1714157436172,-500.0,0.00041095,7]
[323672959,1714157436182,-500.0,0.00041095,7]
[323672960,1714157436192,-500.0,0.00041095,7]
[323672961,1714157436201,-500.0,0.00041095,7]
[323672962,1714157436210,-500.0,0.00041095,7]
[323672963,1714157436220,-44444.0,0.00041269,5]
[323672964,1714157436229,-500.0,0.00041369,7]
[323672965,1714157436238,-515.48915803,0.00041369,7]
[323672966,1714157436247,-500.0,0.00041369,7]
[323672967,1714157436256,-500.0,0.00041369,7]
[323672968,1714157436266,-500.0,0.00041369,7]
[323672969,1714157436275,-200.0,0.00041369,30]
[323672970,1714157436284,-500.0,0.00041369,7]
[323672971,1714157436293,-500.0,0.00041369,7]
[323672972,1714157436304,-500.0,0.00041369,7]
[323672973,1714157436314,-500.0,0.00041369,7]
[323672974,1714157436323,-500.0,0.00041369,7]
[323672975,1714157436332,-500.0,0.00041369,7]
[323672976,1714157436342,-587.07678689,0.00041369,7]
[323672977,1714157436353,-500.0,0.00041369,7]
[323672978,1714157436363,-500.0,0.00041369,7]
[323672979,1714157436373,-500.0,0.00041369,7]
[323672980,1714157436382,-500.0,0.00041369,7]
[323672981,1714157436392,-500.0,0.00041369,7]
[323672982,1714157436401,-500.0,0.00041369,7]
[323672983,1714157436410,-500.0,0.00041369,7]
[323672984,1714157436419,-500.0,0.00041369,7]
[323672985,1714157436429,-500.0,0.00041369,7]
[323672986,1714157436438,-500.0,0.00041369,7]
[323672987,1714157436447,-500.0,0.00041369,7]
[323672988,1714157436456,-500.0,0.00041369,7]
[323672989,1714157436465,-500.0,0.00041369,7]
[323672990,1714157436474,-500.0,0.00041369,7]
[323672991,1714157436483,-517.06,0.00041369,7]
[323672992,1714157436492,-309.03151396,0.00041369,7]
[323672993,1714157436502,-500.0,0.00041369,7]
[323672994,1714157436510,-500.0,0.00041369,7]
[323672995,1714157436520,-198.13512232,0.00041369,7]
[323672996,1714157436530,-500.0,0.00041369,7]
[323672997,1714157436540,-1134.57,0.00041369,7]
[323672998,1714157436550,-500.0,0.00041369,7]
[323672999,1714157436559,-500.0,0.00041369,7]
[323673000,1714157436568,-500.0,0.00041369,7]
[323673001,1714157436578,-500.0,0.00041369,7]
[323673002,1714157436587,-500.0,0.00041369,7]
[323673003,1714157436598,-500.0,0.00041369,7]
[323673004,1714157436607,-500.0,0.00041369,7]
[323673005,1714157436616,-216.12849231,0.00041369,7]
[323673006,1714157436625,-500.0,0.00041369,120]
[323673007,1714157436634,-333.57849869,0.00041369,7]
[323673008,1714157436643,-500.0,0.00041369,7]
[323673009,1714157436653,-576.41,0.00041369,7]
[323673010,1714157436663,-1379.42,0.00041369,7]
[323673011,1714157436673,-500.0,0.00041369,7]
[323673012,1714157436683,-500.0,0.00041369,7]
[323673013,1714157436692,-500.0,0.00041369,7]
[323673014,1714157436702,-500.0,0.00041369,7]
[323673015,1714157436711,-1160.92,0.00041369,7]
[323673016,1714157436720,-500.0,0.00041369,7]
[323673017,1714157436729,-500.0,0.00041369,7]
[323673018,1714157436738,-500.0,0.00041369,7]
[323673019,1714157436747,-500.0,0.00041369,7]
[323673020,1714157436757,-564.96506372,0.00041369,7]
[323673021,1714157436765,-274.83960381,0.00041369,7]
[323673022,1714157436775,-515.26061085,0.00041369,7]
[323673023,1714157436784,-500.0,0.00041369,7]
[323673024,1714157436793,-500.93969674,0.00041369,7]
[323673025,1714157436802,-500.0,0.00041369,7]
[323673026,1714157436812,-500.0,0.00041369,7]
[323673027,1714157436825,-500.0,0.00041369,7]
[323673028,1714157436836,-500.0,0.00041369,7]
[323673029,1714157436846,-500.0,0.00041369,7]
[323673030,1714157436855,-500.0,0.00041369,7]
[323673031,1714157436866,-564.90965867,0.00041369,7]
[323673032,1714157436876,-500.0,0.00041369,7]
[323673033,1714157436885,-500.0,0.00041369,7]
[323673034,1714157436895,-500.0,0.00041369,7]
[323673035,1714157436905,-500.0,0.00041369,7]
[323673036,1714157436914,-500.0,0.00041369,7]
[323673037,1714157436923,-500.0,0.00041369,7]
[323673038,1714157436933,-500.0,0.00041369,7]
[323673039,1714157436942,-500.0,0.00041369,7]
[323673040,1714157436951,-500.0,0.00041369,7]
[323673041,1714157436960,-500.0,0.00041369,7]
[323673042,1714157436969,-501.18230286,0.00041369,7]
[323673043,1714157436979,-500.0,0.00041369,7]
[323673044,1714157436988,-500.0,0.00041369,7]
[323673045,1714157436997,-1343.43,0.00041369,7]
[323673046,1714157437007,-500.0,0.00041369,7]
[323673047,1714157437017,-1380.78,0.00041369,7]
[323673048,1714157437026,-500.0,0.00041369,7]
[323673049,1714157437035,-500.0,0.00041369,7]
[323673050,1714157437045,-500.0,0.00041369,7]
[323673051,1714157437054,-500.0,0.00041369,3]
[323673052,1714157437064,-500.0,0.00041369,7]
[323673053,1714157437073,-500.0,0.00041369,7]
[323673054,1714157437082,-500.0,0.00041369,7]
[323673055,1714157437091,-500.0,0.00041369,7]
[323673056,1714157437101,-500.0,0.00041369,7]
[323673057,1714157437111,-600.33400583,0.00041369,7]
[323673058,1714157437120,-500.0,0.00041369,7]
[323673059,1714157437129,-500.0,0.00041369,7]
[323673060,1714157437138,-500.0,0.00041369,7]
[323673061,1714157437148,-500.0,0.00041369,7]
[323673062,1714157437157,-500.0,0.00041369,7]
[323673063,1714157437166,-500.0,0.00041369,7]
[323673064,1714157437175,-500.0,0.00041369,7]
[323673065,1714157437184,-500.0,0.00041369,7]
[323673066,1714157437194,-500.0,0.00041369,7]
[323673067,1714157437203,-500.0,0.00041369,7]
[323673068,1714157437212,-500.0,0.00041369,7]
[323673069,1714157437222,-500.0,0.00041369,7]
[323673070,1714157437231,-500.0,0.00041369,7]
[323673071,1714157437240,-500.0,0.00041369,7]
[323673072,1714157437249,-500.0,0.00041369,7]
[323673073,1714157437259,-371.70244708,0.00041369,7]
[323673074,1714157437268,-1371.08,0.00041369,7]
[323673075,1714157437277,-500.0,0.00041369,7]
[323673076,1714157437286,-500.0,0.00041369,7]
[323673077,1714157437295,-500.0,0.00041369,7]
[323673078,1714157437304,-500.0,0.00041369,7]
[323673079,1714157437313,-500.0,0.00041369,7]
[323673080,1714157437322,-500.0,0.00041369,7]
[323673081,1714157437332,-500.0,0.00041369,7]
[323673082,1714157437342,-500.0,0.00041369,7]
[323673083,1714157437352,-500.0,0.00041369,7]
[323673084,1714157437361,-287.53076776,0.00041369,7]
[323673085,1714157437370,-500.0,0.00041369,7]
[323673086,1714157437379,-500.0,0.00041369,7]
[323673087,1714157437388,-500.0,0.00041369,7]
[323673088,1714157437397,-500.0,0.00041369,7]
[323673089,1714157437406,-623.24212262,0.00041369,7]
[323673090,1714157437416,-500.0,0.00041369,7]
[323673091,1714157437425,-500.0,0.00041369,30]
[323673092,1714157437434,-500.0,0.00041369,7]
[323673093,1714157437443,-500.0,0.00041369,7]
[323673094,1714157437453,-500.0,0.00041369,7]
[323673095,1714157437462,-500.0,0.00041369,7]
[323673096,1714157437471,-500.0,0.00041369,7]
[323673097,1714157437480,-500.0,0.00041369,7]
[323673098,1714157437490,-500.0,0.00041369,7]
[323673099,1714157437498,-500.0,0.00041369,7]
[323673100,1714157437508,-500.0,0.00041369,7]
[323673101,1714157437517,-500.0,0.00041369,7]
[323673102,1714157437528,-760.41,0.00041369,7]
[323673103,1714157437538,-500.0,0.00041369,7]
[323673104,1714157437547,-500.0,0.00041369,7]
[323673105,1714157437560,-496.64026538,0.00041369,7]
[323673106,1714157437570,-500.0,0.00041369,7]
[323673107,1714157437579,-500.0,0.00041369,7]
[323673108,1714157437588,-500.0,0.00041369,7]
[323673109,1714157437600,-500.0,0.00041369,7]
[323673110,1714157437610,-500.0,0.00041369,7]
[323673111,1714157437622,-500.0,0.00041369,7]
[323673112,1714157437636,-500.0,0.00041369,7]
[323673113,1714157437656,-610.80165985,0.00041369,7]
[323673114,1714157437672,-1703.02,0.00041369,7]
[323673115,1714157437681,-500.0,0.00041369,7]
[323673116,1714157437690,-500.0,0.00041369,7]
[323673117,1714157437700,-500.0,0.00041369,7]
[323673118,1714157437709,-500.0,0.00041369,7]
[323673119,1714157437719,-500.0,0.00041369,7]
[323673120,1714157437728,-500.0,0.00041369,7]
[323673121,1714157437737,-500.0,0.00041369,7]
[323673122,1714157437746,-500.0,0.00041369,7]
[323673123,1714157437755,-500.0,0.00041369,7]
[323673124,1714157437765,-1005.0,0.00041369,7]
[323673125,1714157437774,-500.0,0.00041369,7]
[323673126,1714157437783,-500.0,0.00041369,7]
[323673127,1714157437793,-1167.18,0.00041369,7]
[323673128,1714157437802,-500.0,0.00041369,7]
[323673129,1714157437811,-500.0,0.00041369,7]
[323673130,1714157437824,-500.0,0.00041369,7]
[323673131,1714157437833,-703.26,0.00041369,7]
[323673132,1714157437843,-500.0,0.00041369,7]
[323673133,1714157437852,-500.0,0.00041369,7]
[323673134,1714157437862,-500.0,0.00041369,7]
[323673135,1714157437871,-500.0,0.00041369,7]
[323673136,1714157437880,-500.0,0.00041369,7]
[323673137,1714157437889,-500.0,0.00041369,7]
[323673138,1714157437899,-500.0,0.00041369,7]
[323673139,1714157437909,-500.0,0.00041369,7]
[323673140,1714157437918,-500.0,0.00041369,7]
[323673141,1714157437927,-500.0,0.00041369,7]
[323673142,1714157437937,-500.0,0.00041369,7]
[323673143,1714157437946,-500.0,0.00041369,7]
[323673145,1714157437955,-500.0,0.00041369,7]
[323673146,1714157437964,-500.0,0.00041369,7]
[323673147,1714157437974,-500.0,0.00041369,7]
[323673148,1714157437984,-531.91,0.00041369,7]
[323673149,1714157437994,-500.0,0.00041369,7]
[323673150,1714157438003,-500.0,0.00041369,7]
[323673156,1714157438121,-500.0,0.00041369,7]
[323673158,1714157438131,-500.0,0.00041369,7]
[323673159,1714157438140,-500.0,0.00041369,7]
[323673161,1714157438150,-500.0,0.00041369,7]
[323673163,1714157438159,-500.0,0.00041369,7]
[323673165,1714157438168,-500.0,0.00041369,7]
[323673167,1714157438177,-7419.90458966,0.00041369,30]
[323673168,1714157438187,-500.0,0.00041369,7]
[323673170,1714157438196,-500.0,0.00041369,7]
[323673172,1714157438206,-500.0,0.00041369,7]
[323673174,1714157438215,-501.66411426,0.00041369,7]
[323673175,1714157438223,-500.0,0.00041369,7]
[323673177,1714157438232,-500.0,0.00041369,7]
[323673179,1714157438241,-887.83,0.00041369,7]
[323673181,1714157438250,-500.0,0.00041369,7]
[323673183,1714157438262,-500.0,0.00041369,7]
[323673184,1714157438271,-512.94341918,0.00041369,7]
[323673185,1714157438280,-535.06,0.00041369,7]
[323673186,1714157438289,-749.04,0.00041369,7]
[323673187,1714157438298,-508.96126946,0.00041369,7]
[323673188,1714157438307,-500.0,0.00041369,7]
[323673189,1714157438317,-500.0,0.00041369,7]
[323673191,1714157438326,-500.0,0.00041369,7]
[323673193,1714157438336,-346.47207276,0.00041369,7]
[323673196,1714157438346,-500.0,0.00041369,7]
[323673197,1714157438356,-500.0,0.00041369,7]
[323673199,1714157438364,-500.0,0.00041369,7]
[323673201,1714157438374,-500.0,0.00041369,7]
[323673203,1714157438383,-511.07801247,0.00041369,7]
[323673205,1714157438393,-500.0,0.00041369,7]
[323673207,1714157438402,-500.0,0.00041369,7]
[323673209,1714157438411,-500.0,0.00041369,7]
[323673210,1714157438420,-500.0,0.00041369,7]
[323673211,1714157438430,-500.0,0.00041369,7]
[323673212,1714157438439,-500.0,0.00041369,7]
[323673213,1714157438448,-500.0,0.00041369,7]
[323673214,1714157438458,-1950.66579184,0.00041369,7]
[323673251,1714157438844,-500.0,0.00041095,7]
[323673253,1714157438854,-496.46779056,0.00041095,7]
[323673255,1714157438866,-3.53220944,0.00041095,7]
[323673257,1714157438875,-2254.64420816,0.00041369,7]
[323673259,1714157438884,-1911.24,0.00041369,7]
[323673261,1714157438893,-500.0,0.00041369,7]
[323673263,1714157438903,-500.0,0.00041369,7]
[323673265,1714157438912,-500.0,0.00041369,7]
[323673267,1714157438921,-500.0,0.00041369,7]
[323673269,1714157438930,-500.0,0.00041369,7]
[323673271,1714157438940,-380.79186351,0.00041369,7]
[323673273,1714157438948,-500.0,0.00041369,7]
[323673275,1714157438957,-2899.93,0.00041369,7]
[323673277,1714157438966,-500.0,0.00041369,7]
[323673279,1714157438975,-500.0,0.00041369,7]
[323673281,1714157438984,-500.0,0.00041369,7]
[323673283,1714157438993,-500.0,0.00041369,7]
[323673285,1714157439002,-500.0,0.00041369,7]
[323673287,1714157439011,-500.0,0.00041369,7]
[323673289,1714157439020,-500.0,0.00041369,7]
[323673290,1714157439029,-500.0,0.00041369,7]
[323673292,1714157439038,-1614.93,0.00041369,7]
[323673294,1714157439048,-500.0,0.00041369,7]
[323673296,1714157439057,-500.0,0.00041369,7]
[323673299,1714157439067,-200.09526135,0.00041369,7]
[323674080,1714157446721,-500.0,0.00041095,7]
[323674082,1714157446730,-500.0,0.00041095,7]
[323674084,1714157446739,-500.0,0.00041095,7]
[323674086,1714157446749,-500.0,0.00041095,7]
[323674088,1714157446757,-500.0,0.00041095,7]
[323674091,1714157446766,-155.03278236,0.00041095,7]
[323674093,1714157446775,-500.0,0.00041095,7]
[323674095,1714157446784,-999.0,0.00041368,10]
[323674097,1714157446793,-299.90473865,0.00041369,7]
[323674099,1714157446802,-500.0,0.00041369,7]
[323674101,1714157446812,-500.0,0.00041369,7]
[323674103,1714157446826,-500.0,0.00041369,7]
[323674105,1714157446835,-500.0,0.00041369,7]
[323674107,1714157446844,-500.0,0.00041369,7]
[323674108,1714157446854,-527.39,0.00041369,7]
[323674109,1714157446863,-500.0,0.00041369,7]
[323674110,1714157446872,-500.0,0.00041369,7]
[323674111,1714157446881,-500.0,0.00041369,7]
[323674112,1714157446890,-151.0,0.00041369,7]
[323674113,1714157446900,-500.0,0.00041369,7]
[323674114,1714157446909,-151.0,0.00041369,7]
[323674115,1714157446918,-500.0,0.00041369,7]
[323674116,1714157446927,-500.0,0.00041369,7]
[323674117,1714157446936,-500.0,0.00041369,7]
[323674118,1714157446945,-500.0,0.00041369,7]
[323674119,1714157446955,-500.0,0.00041369,7]
[323674120,1714157446964,-500.0,0.00041369,7]
[323674121,1714157446973,-500.0,0.00041369,7]
[323674122,1714157446982,-2253.66,0.00041369,7]
[323674123,1714157446991,-502.32921597,0.00041369,7]
[323674124,1714157447000,-161.79543406,0.00041369,7]
[323674125,1714157447010,-500.0,0.00041369,7]
[323674126,1714157447019,-408.56228367,0.00041369,7]
[323674127,1714157447028,-232.579818,0.00041369,7]
[323674128,1714157447037,-500.0,0.00041369,7]
[323674129,1714157447046,-500.0,0.00041369,7]
[323674130,1714157447056,-500.0,0.00041369,7]
[323674131,1714157447065,-500.0,0.00041369,7]
[323674132,1714157447075,-500.0,0.00041369,7]
[323674133,1714157447084,-500.0,0.00041369,7]
[323674134,1714157447093,-500.0,0.00041369,7]
[323674135,1714157447103,-3319.34,0.00041369,7]
[323674136,1714157447112,-500.0,0.00041369,7]
[323674137,1714157447121,-500.0,0.00041369,7]
[323674138,1714157447130,-501.60539896,0.00041369,7]
[323674139,1714157447140,-500.0,0.00041369,2]
[323674140,1714157447150,-500.0,0.00041369,7]
[323674141,1714157447159,-500.0,0.00041369,7]
[323674142,1714157447169,-500.0,0.00041369,7]
[323674144,1714157447179,-500.0,0.00041369,7]
[323674147,1714157447190,-500.0,0.00041369,7]
[323674149,1714157447199,-500.0,0.00041369,7]
[323674150,1714157447208,-500.0,0.00041369,7]
[323674165,1714157447329,-500.0,0.00041369,7]
[323674167,1714157447339,-500.0,0.00041369,7]
[323674169,1714157447348,-500.0,0.00041369,7]
[323674171,1714157447358,-500.0,0.00041369,7]
[323674173,1714157447367,-500.0,0.00041369,7]
[323674175,1714157447376,-500.0,0.00041369,7]
[323674177,1714157447385,-500.0,0.00041369,7]
[323674179,1714157447394,-500.0,0.00041369,7]
[323674181,1714157447403,-415.36828714,0.0004164,4]
[323674183,1714157447413,-267.67899433,0.0004164,4]
[323674185,1714157447422,-170.38964357,0.00041641,4]
[323674187,1714157447431,-154.87609912,0.00041641,4]
[323674189,1714157447440,-258.110943,0.00041641,7]
[323674191,1714157447449,-276.44459937,0.00041642,7]
[323674193,1714157447458,-21750.35974021,0.00041642,4]
[323674585,1714158000970,300.0,0.00014728,2]
[323674586,1714158001340,300.0,0.00014728,2]
[323674589,1714158427177,-1057.47244,0.00019309,2]
[323674590,1714158427198,-354.89338741,0.0001931,2]
[323674591,1714158427219,-19278.76320259,0.00019312,2]
[323674592,1714158429158,-5621.23679741,0.00019312,2]
[323674593,1714158429182,-154.55046741,0.00019629,2]
[323674594,1714158429204,-175.352028,0.00019729,2]
[323674595,1714158429225,-5782.17437916,0.000199,2]
[323674597,1714158549161,-16019.55156952,0.00019899,2]
[323674598,1714158549184,-38661.82562084,0.000199,2]
[323674599,1714158549205,-1012.22106901,0.00019997,2]
[323674600,1714158549226,-354.84963956,0.00019997,2]
[323674601,1714158549246,-154.84515485,0.00019998,2]
[323674602,1714158549266,-6499.06384556,0.00019999,2]
[323674603,1714158549286,-24261.09772066,0.00019999,2]
[323674604,1714158549316,-151414.19401913,0.00019999,2]
[323674785,1714158638856,-986.55504998,0.00019998,2]
[323674790,1714158638891,-2086.53808771,0.00019998,2]
[323675321,1714158643993,-1073.08782864,0.00019998,2]
[323675323,1714158644002,-14657.91217137,0.00019999,2]
[323675586,1714158646736,-44444.0,0.000199,2]
[323675588,1714158646745,-25367.55378858,0.00019999,2]
[323675593,1714158646791,-712.64800179,0.00019999,2]
[323676512,1714158788814,767.86268077,0.00017997,2]
[323676513,1714158797064,24900.0,0.00018958,2]
[323676514,1714158830909,166.666666,0.00018588,2]
[323676515,1714158838978,154.84515485,0.00018958,2]
[323676516,1714158855046,154.95661954,0.00018958,2]
[323676518,1714159286156,15194.51540556,0.00018911,2]
[323676520,1714159380677,300.0,0.00014728,2]
[323676525,1714159536965,-474.97592894,0.00018653,2]
[323676526,1714159536988,-154.84515485,0.00018654,2]
[323676527,1714159537008,-154.84515485,0.00018654,2]
[323676528,1714159537029,-1490.8786078,0.00018655,2]
[323676529,1714159537049,-300.0,0.00018655,2]
[323676530,1714159537069,-205.53218657,0.00018656,2]
[323676531,1714159552092,-157.21064184,0.00018554,2]
[323676532,1714159552111,-212.14600576,0.00018651,2]
[323676533,1714159552131,-95.03916459,0.00018652,2]
[323676534,1714159625110,-459.88228259,0.00018648,2]
[323676535,1714159625132,-206.14128872,0.00018649,2]
[323676536,1714159625154,-1407.0,0.0001865,2]
[323676537,1714159625175,-1620.88006626,0.00018664,2]
[323676538,1714159625195,-173.614956,0.00018666,2]
[323676539,1714159625217,-154.84515485,0.00018822,2]
[323676540,1714159625238,-157.21064183,0.00018823,2]
[323676541,1714159625261,-1074.30107161,0.000189,2]
[323676542,1714159625286,-9705.48459444,0.00018911,2]
[323676543,1714159625307,-154.55046744,0.00019078,2]